fUSD/lending_fUSD_20250904
["ID","MTS","AMOUNT","RATE_DAILY","PERIOD"]
[383592088,1757014237530,-1904.2348859,0.00024781,2]
[383592089,1757014237540,-400.0,0.00027999,2]
[383592090,1757014237550,-400.0,0.00027999,2]
[383592091,1757014237561,-400.0,0.00027999,2]
[383592092,1757014237571,-400.0,0.00027999,2]
[383592093,1757014237581,-400.0,0.00027999,2]
[383592094,1757014237592,-400.0,0.00027999,2]
[383592095,1757014237607,-400.0,0.00027999,2]
[383592096,1757014237618,-400.0,0.00028273,2]
[383592097,1757014237629,-400.0,0.00028273,2]
[383592098,1757014237640,-400.0,0.00028273,2]
[383592099,1757014237651,-400.0,0.00028273,2]
[383592100,1757014237662,-400.0,0.00028273,2]
[383592101,1757014237673,-400.0,0.00028273,2]
[383592102,1757014237683,-400.0,0.00028547,2]
[383592103,1757014237693,-400.0,0.00028547,2]
[383592104,1757014237704,-453.58,0.00028547,2]
[383592105,1757014237714,-193.91728246,0.00028599,2]
[383592106,1757014237724,-1069.55,0.000286,30]
[383592107,1757014237734,-44765.81506363,0.000286,2]
[383592108,1757014237746,-1067.37818342,0.000286,2]
[383592109,1757014237758,-439.12573643,0.000286,2]
[383592165,1757014239697,-794.36,0.00027781,2]
[383592167,1757014239708,-400.0,0.00027999,2]
[383592169,1757014239719,-400.0,0.00027999,2]
[383592172,1757014239730,-400.0,0.00028273,2]
[383592174,1757014239741,-20509.26543135,0.00028505,2]
[383592176,1757014239754,-13607.67502761,0.00028505,2]
[383592178,1757014239765,-393.16,0.00028547,2]
[383592181,1757014239776,-21061.90875987,0.000286,2]
[383592183,1757014239786,-150.0,0.00028605,2]
[383592185,1757014239796,-226.80774358,0.00028605,2]
[383592187,1757014239808,-23.19225642,0.00028605,2]
[383592189,1757014239818,-250.0,0.00028605,2]
[383592191,1757014239828,-1000.0,0.0002865,7]
[383592193,1757014239838,-420.88,0.0002865,2]
[383592195,1757014239848,-851.25033014,0.00028651,2]
[383592197,1757014239858,-4787.29161307,0.00028656,3]
[383592200,1757014239868,-34067.38580037,0.0002866,3]
[383592269,1757014242463,-2620.53941357,0.00024781,2]
[383592270,1757014242517,-1542.46058643,0.00024781,2]
[383592271,1757014242528,-179.45633427,0.00027397,2]
[383592272,1757014242538,-4163.0,0.00027781,2]
[383592273,1757014242549,-400.0,0.00027999,2]
[383592274,1757014242559,-400.0,0.00027999,2]
[383592275,1757014242570,-400.0,0.00027999,2]
[383592276,1757014242580,-400.0,0.00027999,2]
[383592277,1757014242591,-400.0,0.00028273,2]
[383592278,1757014242604,-400.0,0.00028273,2]
[383592279,1757014242615,-412.97554434,0.00028273,2]
[383592280,1757014242624,-400.0,0.00028273,2]
[383592281,1757014242634,-250.68,0.00028547,2]
[383592288,1757014242946,-400.0,0.00028547,2]
[383592290,1757014242964,-458.24,0.00028547,2]
[383592293,1757014242979,-502.42299164,0.0002866,3]
[383592296,1757014242999,-400.0,0.00027999,2]
[383592298,1757014243009,-1213.14828879,0.0002866,3]
[383592300,1757014243021,-337.88,0.0002866,3]
[383592382,1757014412377,151.37,0.00013462,2]
[383592383,1757014412485,151.37,0.00016155,2]
[383592384,1757014412711,151.37,0.00018847,2]
[383592385,1757014521363,250.0,0.00015,2]
[383592386,1757014522475,300.0,0.00017,2]
[383592388,1757015108861,153.62,0.00013699,2]
[383592394,1757015429614,150.9,0.00012939,2]
[383592395,1757015429834,150.9,0.00014788,2]
[383592396,1757015430045,150.9,0.00016636,2]
[383592397,1757015430295,150.9,0.00018485,2]
[383592398,1757015431663,-150.9,0.00020333,2]
[383592399,1757015431672,-153.62,0.00021404,2]
[383592400,1757015431682,-172.14,0.000221,2]
[383592401,1757015431691,-150.9,0.00022182,2]
[383592402,1757015431701,-150.9,0.0002403,2]
[383592403,1757015431711,-177.59049999,0.00024153,2]
[383592404,1757015431723,-89.79950001,0.00024153,2]
[383592405,1757015431733,-260.20050141,0.00024583,2]
[383592406,1757015431744,-645.82749999,0.00024583,2]
[383592410,1757015437602,-251.63821888,0.00024583,2]
[383592411,1757015437614,-388.09,0.00024583,2]
[383592417,1757015439992,-1464.45506787,0.00024583,2]
[383592418,1757015440003,-190.08,0.00024658,2]
[383592419,1757015440013,-514.64478986,0.00024888,2]
[383592420,1757015440022,-212.59699798,0.00024888,2]
[383592421,1757015440032,-1200.0,0.00024899,2]
[383592422,1757015440041,-300.0,0.00024899,2]
[383592423,1757015440050,-7021.52900027,0.000249,2]
[383592424,1757015440059,-5675.38,0.00025,7]
[383592425,1757015440069,-1258.0,0.00025471,2]
[383592426,1757015440078,-924.0,0.00025471,2]
[383592427,1757015440089,-3382.0,0.00025471,2]
[383592428,1757015440098,-1484.045,0.00025471,2]
[383592430,1757015440106,-567.0,0.00025471,2]
[383592431,1757015440115,-1300.0,0.00025471,2]
[383592432,1757015440124,-600.0,0.00025471,2]
[383592433,1757015440134,-811.0,0.00025471,2]
[383592434,1757015440142,-8652.023,0.00025471,2]
[383592435,1757015440151,-724.0,0.00025471,2]
[383592436,1757015440161,-4163.0,0.00025471,2]
[383592437,1757015440172,-6163.0,0.00025471,2]
[383592438,1757015440185,-1602.54,0.00025808,7]
[383592439,1757015440196,-1602.54,0.00025808,7]
[383592440,1757015440206,-1602.54,0.00025808,7]
[383592441,1757015440217,-1602.54,0.00025808,7]
[383592442,1757015440227,-212.59699798,0.00025808,7]
[383592443,1757015440239,-3010.21128815,0.00025808,7]
[383592444,1757015440248,-300.81,0.00025811,7]
[383592445,1757015440257,-267.39,0.00025811,7]
[383592446,1757015440267,-159.81,0.00025858,2]
[383592447,1757015440276,-3617.6,0.00025874,2]
[383592448,1757015440286,-150.9,0.00025879,2]
[383592449,1757015440295,-250.0,0.00025882,2]
[383592450,1757015440305,-214.99,0.00025897,2]
[383592451,1757015440314,-160.0,0.00025915,7]
[383592452,1757015440323,-260.65,0.00025916,2]
[383592453,1757015440332,-239.84119403,0.00025977,2]
[383592454,1757015440342,-266.13858613,0.00025977,2]
[383592456,1757015440351,-623.58710448,0.00025977,2]
[383592457,1757015440361,-230.25713634,0.00025977,2]
[383592458,1757015440370,-322.6107,0.00025977,2]
[383592459,1757015440379,-5675.38,0.00026,7]
[383592460,1757015440389,-1069.55,0.00026,2]
[383592461,1757015440398,-514.64478986,0.00026,7]
[383592462,1757015440407,-7021.52900005,0.0002601,4]
[383592463,1757015440417,-1602.54,0.00026082,7]
[383592464,1757015440426,-1602.54,0.00026082,7]
[383592465,1757015440435,-1602.54,0.00026356,7]
[383592466,1757015440445,-1602.54,0.00026356,7]
[383592467,1757015440454,-458.061,0.00026484,30]
[383592468,1757015440464,-1602.54,0.0002663,7]
[383592469,1757015440473,-1602.54,0.0002663,7]
[383592470,1757015440483,-500.0,0.00026732,2]
[383592471,1757015440492,-800.0,0.00026732,2]
[383592472,1757015440502,-500.0,0.00026732,2]
[383592473,1757015440511,-165.42,0.00026869,2]
[383592474,1757015440521,-1602.54,0.00026904,7]
[383592475,1757015440531,-1602.54,0.00026904,7]
[383592476,1757015440540,-5675.38,0.00027,7]
[383592477,1757015440550,-1680.0,0.00027099,2]
[383592478,1757015440560,-7021.52900005,0.00027121,7]
[383592479,1757015440570,-514.0,0.00027137,2]
[383592480,1757015440580,-161.25,0.00027138,2]
[383592481,1757015440589,-1602.54,0.00027178,7]
[383592482,1757015440599,-1602.54,0.00027178,7]
[383592483,1757015440608,-214.99,0.00027192,2]
[383592484,1757015440617,-1069.55,0.000273,2]
[383592485,1757015440627,-393.0,0.000273,2]
[383592486,1757015440636,-248.71531821,0.00027346,2]
[383592487,1757015440645,-371.2403917,0.00027346,2]
[383592488,1757015440655,-300.0,0.00027397,2]
[383592489,1757015440664,-173.91,0.00027397,80]
[383592490,1757015440674,-211.17,0.00027425,30]
[383592491,1757015440683,-1602.54,0.00027452,15]
[383592492,1757015440693,-1602.54,0.00027452,15]
[383592493,1757015440702,-267.39,0.00027469,7]
[383592494,1757015440712,-680.8,0.00027584,2]
[383592495,1757015440722,-416.705,0.0002765,17]
[383592496,1757015440731,-1433.21615364,0.000277,2]
[383592500,1757015442703,-550.91562193,0.00025471,2]
[383592501,1757015443069,-345.08437807,0.00025471,2]
[383592502,1757015443079,-566.78384636,0.000277,2]
[383592503,1757015443093,-1602.54,0.00027726,15]
[383592504,1757015443103,-1602.54,0.00027726,15]
[383592505,1757015443113,-190.08,0.00027726,2]
[383592506,1757015443122,-470.45,0.00027726,2]
[383592507,1757015443132,-800.0,0.00027828,7]
[383592508,1757015443143,-151.0,0.00027845,2]
[383592509,1757015443152,-174.08,0.00027863,2]
[383592510,1757015443162,-404.2,0.00027863,2]
[383592511,1757015443171,-839.73,0.00027863,2]
[383592512,1757015443181,-532.97,0.00027863,2]
[383592513,1757015443191,-2500.0,0.00027889,2]
[383592514,1757015443200,-30705.2464131,0.00027889,2]
[383592515,1757015443209,-583.49207218,0.00027889,2]
[383592516,1757015443219,-158.11906041,0.0002789,2]
[383592517,1757015443228,-2748.9008,0.00027899,2]
[383592518,1757015443237,-1000.0,0.00027899,2]
[383592519,1757015443246,-2098.823,0.00027899,2]
[383592520,1757015443256,-5000.0,0.00027899,2]
[383592521,1757015443265,-781.56,0.00027962,2]
[383592522,1757015443275,-500.0,0.00027973,2]
[383592523,1757015443284,-271.35,0.00027979,2]
[383592524,1757015443294,-400.0,0.00027988,2]
[383592525,1757015443303,-400.0,0.00027988,2]
[383592526,1757015443313,-400.0,0.00027988,2]
[383592527,1757015443323,-400.0,0.00027988,2]
[383592528,1757015443332,-400.0,0.00027988,2]
[383592529,1757015443342,-400.0,0.00027988,2]
[383592530,1757015443352,-400.0,0.00027988,2]
[383592531,1757015443362,-400.0,0.00027988,2]
[383592532,1757015443372,-400.0,0.00027988,2]
[383592533,1757015443381,-400.0,0.00027988,2]
[383592534,1757015443391,-400.0,0.00027988,2]
[383592535,1757015443400,-400.0,0.00027988,2]
[383592536,1757015443410,-400.0,0.00027988,2]
[383592537,1757015443420,-328.08,0.00027988,2]
[383592538,1757015443429,-400.0,0.00027988,2]
[383592539,1757015443439,-400.0,0.00027988,2]
[383592540,1757015443448,-400.0,0.00027988,2]
[383592541,1757015443458,-400.0,0.00027988,2]
[383592542,1757015443469,-400.0,0.00027988,2]
[383592543,1757015443478,-400.0,0.00027988,2]
[383592544,1757015443488,-400.0,0.00027988,2]
[383592545,1757015443497,-400.0,0.00027988,2]
[383592546,1757015443507,-400.0,0.00027988,2]
[383592547,1757015443516,-400.0,0.00027988,2]
[383592548,1757015443526,-400.0,0.00027988,2]
[383592549,1757015443535,-400.0,0.00027988,2]
[383592550,1757015443544,-400.0,0.00027988,2]
[383592551,1757015443553,-400.0,0.00027988,2]
[383592552,1757015443563,-400.0,0.00027988,2]
[383592553,1757015443572,-400.0,0.00027988,2]
[383592554,1757015443582,-400.0,0.00027988,2]
[383592555,1757015443592,-400.0,0.00027988,2]
[383592556,1757015443601,-400.0,0.00027988,2]
[383592557,1757015443611,-400.0,0.00027988,2]
[383592559,1757015443620,-1439.787864,0.00027988,2]
[383592561,1757015443629,-400.0,0.00027988,2]
[383592563,1757015443639,-400.0,0.00027988,2]
[383592565,1757015443647,-400.0,0.00027988,2]
[383592567,1757015443657,-158.556191,0.00027988,2]
[383592569,1757015443667,-400.0,0.00027988,2]
[383592571,1757015443676,-400.0,0.00027988,2]
[383592573,1757015443686,-400.0,0.00027988,2]
[383592575,1757015443696,-400.0,0.00027988,2]
[383592577,1757015443705,-400.0,0.00027988,2]
[383592579,1757015443715,-400.0,0.00027988,2]
[383592581,1757015443724,-400.0,0.00027988,2]
[383592583,1757015443733,-400.0,0.00027988,2]
[383592585,1757015443742,-400.0,0.00027988,2]
[383592587,1757015443752,-400.0,0.00027988,2]
[383592589,1757015443761,-400.0,0.00027988,2]
[383592591,1757015443770,-400.0,0.00027988,2]
[383592593,1757015443780,-400.0,0.00027988,2]
[383592595,1757015443789,-3010.21128815,0.00027988,3]
[383592597,1757015443798,-54104.1394868,0.00027988,3]
[383592599,1757015443808,-271.35,0.00027988,2]
[383592601,1757015443817,-108208.278974,0.00027989,3]
[383592603,1757015443826,-22497.5044065,0.00027989,3]
[383592605,1757015443835,-514.64478986,0.00027989,3]
[383592607,1757015443844,-212.59699798,0.00027989,3]
[383592609,1757015443853,-19733.05688235,0.00027998,3]
[383592611,1757015443863,-514.99772635,0.00027998,2]
[383592613,1757015443872,-400.0,0.00027998,2]
[383592615,1757015443882,-400.0,0.00027998,2]
[383592617,1757015443892,-405.51450277,0.00027998,2]
[383592619,1757015443901,-468.94387152,0.00027998,2]
[383592621,1757015443911,-400.0,0.00027998,2]
[383592623,1757015443920,-400.0,0.00027998,2]
[383592625,1757015443929,-400.0,0.00027998,2]
[383592627,1757015443938,-400.0,0.00027998,2]
[383592629,1757015443947,-400.0,0.00027998,2]
[383592631,1757015443956,-400.0,0.00027998,2]
[383592633,1757015443965,-400.0,0.00027998,2]
[383592635,1757015443975,-400.0,0.00027998,2]
[383592637,1757015443984,-400.0,0.00027998,2]
[383592639,1757015443993,-400.0,0.00027998,2]
[383592641,1757015444003,-400.0,0.00027998,2]
[383592643,1757015444012,-400.0,0.00027998,2]
[383592645,1757015444021,-464.06919631,0.00027998,2]
[383592648,1757015444037,-400.0,0.00027998,2]
[383592650,1757015444050,-400.0,0.00027998,2]
[383592652,1757015444061,-407.48202094,0.00027998,2]
[383592654,1757015444070,-400.0,0.00027998,2]
[383592656,1757015444079,-400.0,0.00027998,2]
[383592658,1757015444092,-400.0,0.00027998,2]
[383592660,1757015444102,-400.0,0.00027998,2]
[383592663,1757015444111,-400.0,0.00027998,2]
[383592665,1757015444121,-400.0,0.00027998,2]
[383592667,1757015444133,-400.0,0.00027998,2]
[383592669,1757015444142,-400.0,0.00027998,2]
[383592671,1757015444152,-400.0,0.00027998,2]
[383592673,1757015444162,-400.0,0.00027998,2]
[383592675,1757015444172,-400.0,0.00027998,2]
[383592677,1757015444181,-400.0,0.00027998,2]
[383592679,1757015444191,-250.685236,0.00027998,2]
[383592681,1757015444200,-691.23223,0.00027998,2]
[383592683,1757015444210,-400.0,0.00027998,2]
[383592685,1757015444220,-400.0,0.00027998,2]
[383592687,1757015444229,-400.0,0.00027998,2]
[383592689,1757015444239,-400.0,0.00027998,2]
[383592691,1757015444250,-400.0,0.00027998,2]
[383592693,1757015444260,-400.0,0.00027998,2]
[383592695,1757015444269,-400.0,0.00027998,2]
[383592697,1757015444279,-692.8093,0.00027998,2]
[383592699,1757015444288,-250.685236,0.00027998,2]
[383592701,1757015444298,-400.0,0.00027998,2]
[383592703,1757015444307,-400.0,0.00027998,2]
[383592705,1757015444317,-400.0,0.00027998,2]
[383592707,1757015444327,-400.0,0.00027998,2]
[383592709,1757015444337,-400.0,0.00027998,2]
[383592711,1757015444347,-400.0,0.00027998,2]
[383592713,1757015444356,-400.0,0.00027998,2]
[383592715,1757015444366,-400.0,0.00027998,2]
[383592717,1757015444376,-400.0,0.00027998,2]
[383592719,1757015444385,-400.0,0.00027998,2]
[383592721,1757015444395,-400.0,0.00027998,2]
[383592724,1757015444405,-400.0,0.00027998,2]
[383592726,1757015444417,-400.0,0.00027998,2]
[383592727,1757015444428,-400.0,0.00027998,2]
[383592730,1757015444439,-400.0,0.00027998,2]
[383592732,1757015444450,-400.0,0.00027998,2]
[383592734,1757015444460,-400.0,0.00027998,2]
[383592736,1757015444470,-400.0,0.00027998,2]
[383592738,1757015444480,-400.0,0.00027998,2]
[383592740,1757015444489,-400.0,0.00027998,2]
[383592742,1757015444499,-400.0,0.00027998,2]
[383592744,1757015444509,-400.0,0.00027998,2]
[383592746,1757015444519,-400.0,0.00027998,2]
[383592748,1757015444528,-400.0,0.00027998,2]
[383592750,1757015444538,-489.17332994,0.00027998,2]
[383592752,1757015444547,-400.0,0.00027998,2]
[383592754,1757015444557,-400.0,0.00027998,2]
[383592756,1757015444566,-400.0,0.00027998,2]
[383592758,1757015444575,-400.0,0.00027998,2]
[383592760,1757015444585,-400.0,0.00027998,2]
[383592762,1757015444595,-400.0,0.00027998,2]
[383592764,1757015444603,-409.81894051,0.00027998,2]
[383592766,1757015444612,-400.0,0.00027998,2]
[383592767,1757015444621,-400.0,0.00027998,2]
[383592769,1757015444631,-400.0,0.00027998,2]
[383592771,1757015444641,-400.0,0.00027998,2]
[383592774,1757015444650,-400.0,0.00027998,2]
[383592776,1757015444660,-400.0,0.00027998,2]
[383592778,1757015444670,-400.0,0.00027998,2]
[383592780,1757015444680,-400.0,0.00027998,2]
[383592782,1757015444689,-293.26206904,0.00027998,2]
[383592784,1757015444699,-400.0,0.00027998,2]
[383592786,1757015444709,-400.0,0.00027998,2]
[383592787,1757015444719,-400.0,0.00027998,2]
[383592790,1757015444729,-400.0,0.00027998,2]
[383592792,1757015444739,-400.0,0.00027998,2]
[383592794,1757015444749,-400.0,0.00027998,2]
[383592796,1757015444759,-500.0,0.00027998,2]
[383592798,1757015444768,-452.70104128,0.00027998,2]
[383592800,1757015444777,-400.0,0.00027998,2]
[383592802,1757015444786,-400.0,0.00027998,2]
[383592804,1757015444796,-400.0,0.00027998,2]
[383592806,1757015444805,-400.0,0.00027998,2]
[383592808,1757015444814,-400.0,0.00027998,2]
[383592810,1757015444823,-400.0,0.00027998,2]
[383592812,1757015444833,-400.0,0.00027998,2]
[383592814,1757015444843,-400.0,0.00027998,2]
[383592816,1757015444852,-400.0,0.00027998,2]
[383592818,1757015444862,-400.0,0.00027998,2]
[383592820,1757015444872,-400.0,0.00027998,2]
[383592822,1757015444882,-400.0,0.00027998,2]
[383592824,1757015444892,-400.0,0.00027998,2]
[383592826,1757015444901,-400.0,0.00027998,2]
[383592828,1757015444912,-400.0,0.00027998,2]
[383592830,1757015444922,-400.0,0.00027998,2]
[383592832,1757015444931,-402.99641019,0.00027998,2]
[383592834,1757015444940,-400.0,0.00027998,2]
[383592836,1757015444950,-400.0,0.00027998,2]
[383592838,1757015444960,-400.0,0.00027998,2]
[383592840,1757015444971,-400.0,0.00027998,2]
[383592842,1757015444980,-400.0,0.00027998,2]
[383592844,1757015444990,-322.18153294,0.00027998,2]
[383592846,1757015444999,-400.0,0.00027998,2]
[383592848,1757015445009,-400.0,0.00027998,2]
[383592849,1757015445018,-400.0,0.00027998,2]
[383592850,1757015445028,-400.0,0.00027998,2]
[383592851,1757015445038,-400.0,0.00027998,2]
[383592852,1757015445047,-400.0,0.00027998,2]
[383592853,1757015445056,-400.0,0.00027998,2]
[383592854,1757015445066,-400.0,0.00027998,2]
[383592855,1757015445075,-400.0,0.00027998,2]
[383592856,1757015445086,-400.0,0.00027998,2]
[383592857,1757015445096,-400.0,0.00027998,2]
[383592858,1757015445105,-400.0,0.00027998,2]
[383592859,1757015445115,-540.74,0.00027998,2]
[383592860,1757015445124,-400.0,0.00027998,2]
[383592861,1757015445135,-400.0,0.00027998,2]
[383592862,1757015445144,-400.0,0.00027998,2]
[383592863,1757015445153,-400.0,0.00027998,2]
[383592864,1757015445164,-400.0,0.00027998,2]
[383592865,1757015445177,-400.0,0.00027998,2]
[383592866,1757015445187,-400.0,0.00027998,2]
[383592867,1757015445198,-400.0,0.00027998,2]
[383592868,1757015445207,-400.0,0.00027998,2]
[383592869,1757015445217,-400.0,0.00027998,2]
[383592870,1757015445227,-400.0,0.00027998,2]
[383592871,1757015445237,-400.0,0.00027998,2]
[383592872,1757015445246,-400.0,0.00027998,2]
[383592873,1757015445256,-400.0,0.00027998,2]
[383592874,1757015445266,-400.0,0.00027998,2]
[383592875,1757015445276,-400.0,0.00027998,2]
[383592876,1757015445285,-400.0,0.00027998,2]
[383592877,1757015445295,-400.0,0.00027998,2]
[383592878,1757015445304,-400.0,0.00027998,2]
[383592879,1757015445314,-400.0,0.00027998,2]
[383592880,1757015445324,-400.0,0.00027998,2]
[383592881,1757015445334,-400.0,0.00027998,2]
[383592882,1757015445343,-400.0,0.00027998,2]
[383592883,1757015445353,-400.0,0.00027998,2]
[383592884,1757015445362,-400.0,0.00027998,2]
[383592885,1757015445372,-400.0,0.00027998,2]
[383592886,1757015445381,-400.0,0.00027998,2]
[383592887,1757015445391,-400.0,0.00027998,2]
[383592888,1757015445400,-400.0,0.00027998,2]
[383592889,1757015445410,-400.0,0.00027998,2]
[383592890,1757015445419,-400.0,0.00027998,2]
[383592891,1757015445429,-400.0,0.00027998,2]
[383592892,1757015445438,-400.0,0.00027998,2]
[383592893,1757015445448,-400.0,0.00027998,2]
[383592894,1757015445458,-400.0,0.00027998,2]
[383592895,1757015445469,-400.0,0.00027998,2]
[383592896,1757015445479,-400.0,0.00027998,2]
[383592897,1757015445489,-400.0,0.00027998,2]
[383592898,1757015445499,-400.0,0.00027998,2]
[383592899,1757015445509,-1000.0,0.00027998,2]
[383592900,1757015445519,-400.0,0.00027998,2]
[383592901,1757015445529,-400.0,0.00027998,2]
[383592902,1757015445540,-400.0,0.00027998,2]
[383592903,1757015445549,-400.0,0.00027998,2]
[383592904,1757015445559,-400.0,0.00027998,2]
[383592905,1757015445570,-400.0,0.00027998,2]
[383592906,1757015445579,-456.22,0.00027998,2]
[383592907,1757015445588,-400.0,0.00027998,2]
[383592908,1757015445598,-407.79418421,0.00027998,2]
[383592909,1757015445607,-403.20222731,0.00027998,2]
[383592910,1757015445616,-400.0,0.00027998,2]
[383592911,1757015445626,-400.0,0.00027998,2]
[383592912,1757015445635,-400.0,0.00027998,2]
[383592913,1757015445645,-400.0,0.00027998,2]
[383592914,1757015445654,-183.48998092,0.00027998,2]
[383592915,1757015445663,-411.40945478,0.00027998,2]
[383592916,1757015445672,-400.0,0.00027998,2]
[383592917,1757015445681,-400.0,0.00027998,2]
[383592918,1757015445691,-400.0,0.00027998,2]
[383592919,1757015445700,-400.0,0.00027998,2]
[383592920,1757015445709,-400.0,0.00027998,2]
[383592921,1757015445719,-403.33100272,0.00027998,2]
[383592922,1757015445728,-400.0,0.00027998,2]
[383592923,1757015445738,-400.0,0.00027998,2]
[383592924,1757015445747,-400.0,0.00027998,2]
[383592925,1757015445756,-400.0,0.00027998,2]
[383592926,1757015445766,-400.0,0.00027998,2]
[383592927,1757015445775,-400.0,0.00027998,2]
[383592928,1757015445785,-400.0,0.00027998,2]
[383592929,1757015445794,-400.0,0.00027998,2]
[383592930,1757015445803,-400.0,0.00027998,2]
[383592931,1757015445813,-400.0,0.00027998,2]
[383592932,1757015445823,-400.0,0.00027998,2]
[383592933,1757015445832,-400.0,0.00027998,2]
[383592934,1757015445842,-400.0,0.00027998,2]
[383592935,1757015445851,-500.0,0.00027998,2]
[383592936,1757015445860,-400.0,0.00027998,2]
[383592937,1757015445870,-400.0,0.00027998,2]
[383592938,1757015445879,-400.0,0.00027998,2]
[383592939,1757015445889,-400.0,0.00027998,2]
[383592940,1757015445898,-400.0,0.00027998,2]
[383592941,1757015445908,-400.0,0.00027998,2]
[383592942,1757015445917,-400.0,0.00027998,2]
[383592943,1757015445927,-400.0,0.00027998,2]
[383592944,1757015445936,-400.0,0.00027998,2]
[383592945,1757015445946,-400.0,0.00027998,2]
[383592946,1757015445956,-400.0,0.00027998,2]
[383592947,1757015445966,-400.0,0.00027998,2]
[383592948,1757015445975,-400.0,0.00027998,2]
[383592949,1757015445985,-400.0,0.00027998,2]
[383592950,1757015445994,-400.0,0.00027998,2]
[383592951,1757015446004,-400.0,0.00027998,2]
[383592952,1757015446013,-400.0,0.00027998,2]
[383592953,1757015446026,-400.0,0.00027998,2]
[383592954,1757015446036,-400.0,0.00027998,2]
[383592955,1757015446045,-409.22067653,0.00027998,2]
[383592956,1757015446055,-403.53550454,0.00027998,2]
[383592957,1757015446064,-400.0,0.00027998,2]
[383592958,1757015446073,-400.0,0.00027998,2]
[383592959,1757015446084,-400.0,0.00027998,2]
[383592960,1757015446095,-400.0,0.00027998,2]
[383592961,1757015446104,-400.0,0.00027998,2]
[383592962,1757015446113,-400.0,0.00027998,2]
[383592963,1757015446123,-400.0,0.00027998,2]
[383592964,1757015446133,-400.0,0.00027998,2]
[383592965,1757015446142,-400.0,0.00027998,2]
[383592966,1757015446152,-400.0,0.00027998,2]
[383592967,1757015446163,-400.0,0.00027998,2]
[383592968,1757015446172,-400.0,0.00027998,2]
[383592969,1757015446182,-429.76345952,0.00027998,2]
[383592970,1757015446192,-400.0,0.00027998,2]
[383592971,1757015446201,-400.0,0.00027998,2]
[383592972,1757015446210,-400.0,0.00027998,2]
[383592973,1757015446220,-400.0,0.00027998,2]
[383592974,1757015446229,-400.0,0.00027998,2]
[383592975,1757015446238,-400.0,0.00027998,2]
[383592976,1757015446247,-400.0,0.00027998,2]
[383592977,1757015446255,-400.0,0.00027998,2]
[383592978,1757015446264,-400.0,0.00027998,2]
[383592979,1757015446273,-400.0,0.00027998,2]
[383592980,1757015446282,-400.0,0.00027998,2]
[383592981,1757015446292,-400.0,0.00027998,2]
[383592982,1757015446301,-400.0,0.00027998,2]
[383592983,1757015446310,-400.0,0.00027998,2]
[383592984,1757015446320,-400.0,0.00027998,2]
[383592985,1757015446329,-400.0,0.00027998,2]
[383592986,1757015446339,-500.0,0.00027998,2]
[383592987,1757015446348,-400.0,0.00027998,2]
[383592989,1757015446357,-400.0,0.00027998,2]
[383592990,1757015446367,-400.0,0.00027998,2]